bitfinex-derivatives/quotes_ETHF0:USTF0_20251013
["timestamp","ask_amount","ask_price","bid_price","bid_amount"]
[1760363170456,6.6708,4129.5,4129.4,0.00294143]
[1760363170654,7.10634,4129.5,4129.4,0.00294143]
[1760363170855,9.80467341,4129.5,4129.4,0.00294143]
[1760363171054,6.34167341,4129.5,4129.4,0.23887683]
[1760363171252,9.80467341,4129.5,4129.4,0.00294143]
[1760363171554,6.34167341,4129.5,4129.4,0.23887683]
[1760363171748,3.2078,4129.5,4129.4,4.01762683]
[1760363171954,3.2078,4130.6,4129.4,3.58207683]
[1760363172152,3.2078,4130.6,4130.2,0.2359354]
[1760363172353,3.463,4130.4,4130.2,0.285]
[1760363172757,6.55196432,4130.3,4130.2,0.285]
[1760363173357,0.43552,4129.7,4129.4,0.00294143]
[1760363173660,6.6708,4129.5,4129.4,0.00294143]
[1760363173968,1.29355206,4129.9,4129.5,3.3432]
[1760363174162,3.10632616,4130.2,4130.1,0.43548]
[1760363174459,3.21005894,4131.0,4130.5,0.43543]
[1760363174664,3.21005894,4131.0,4130.8,0.4354]
[1760363174968,3.21005894,4131.0,4130.6,0.285]
[1760363174969,3.2078,4132.5,4130.9,3.3432]
[1760363175156,6.6708,4133.5,4132.4,0.2359354]
[1760363175464,2.97053603,4133.9,4132.1,0.285]
[1760363175465,0.43526,4132.2,4132.1,0.285]
[1760363175654,3.17921103,4132.4,4132.1,0.72026]
[1760363175851,3.61439103,4132.9,4132.1,0.72026]
[1760363175852,6.4426,4133.0,4132.3,0.2359354]
[1760363176057,3.61445103,4132.4,4132.3,0.23868455]
[1760363176257,6.71798007,4132.5,4132.3,0.00274915]
[1760363176565,3.64260436,4132.4,4132.3,0.00274915]
[1760363176763,3.64303,4132.5,4132.3,0.00274915]
[1760363176954,3.64303,4132.5,4132.1,0.285]
[1760363176955,3.2348,4132.2,4132.1,0.285]
[1760363177154,3.80243526,4132.2,4130.8,3.2078]
[1760363177358,3.2078,4131.6,4131.5,0.285]
[1760363177565,0.43533,4131.5,4130.1,3.2078]
[1760363177860,3.2078,4131.1,4130.7,0.2359354]
[1760363178063,3.13041942,4131.4,4130.8,0.2359354]
[1760363178367,0.43519,4132.9,4131.5,3.4321]
[1760363178658,3.12114078,4132.8,4131.8,3.2078]
[1760363178860,3.12114078,4132.8,4132.6,0.43521]
[1760363179059,0.00313838,4133.0,4132.7,0.5209354]
[1760363179259,0.00313838,4133.0,4132.9,3.6680354]
[1760363179462,0.43499,4134.8,4133.2,0.43515]
[1760363179657,3.2078,4134.4,4133.2,3.6680354]
[1760363179863,0.43507,4134.0,4133.2,3.6680354]
[1760363180064,3.2078,4134.4,4133.2,3.6680354]
[1760363180257,0.43505,4134.2,4133.2,3.6680354]
[1760363180569,0.00267799,4134.2,4134.1,7.07496]
[1760363180867,3.2348,4135.9,4134.2,3.4321]
[1760363180868,1.94760768,4135.9,4134.2,3.4321]
[1760363181064,0.43503,4134.4,4134.3,0.285]
[1760363181269,3.2348,4134.4,4133.6,3.2078]
[1760363181483,3.10611617,4134.4,4133.7,0.285]
[1760363181675,0.43509,4133.9,4133.7,0.28755236]
[1760363181868,0.00258516,4134.4,4133.8,3.2078]
[1760363182254,3.2078,4135.6,4134.3,6.8758354]
[1760363182459,0.43501,4134.7,4134.4,0.285]
[1760363182654,3.2078,4135.1,4134.4,0.285]
[1760363182866,0.43497,4134.9,4134.8,0.2359354]
[1760363183068,3.2078,4135.1,4134.8,0.2359354]
[1760363183264,0.43497,4135.0,4134.8,0.2359354]
[1760363183461,3.21079782,4135.1,4134.8,0.2359354]
[1760363183462,0.43498,4134.9,4134.8,0.2359354]
[1760363183861,0.43498,4134.9,4134.4,0.285]
[1760363183862,3.17076716,4134.9,4134.4,0.285]
[1760363184065,3.60574716,4134.9,4134.7,0.2359354]
[1760363184267,3.17076716,4134.9,4134.7,0.2359354]
[1760363184468,0.43501,4134.6,4134.4,0.285]
[1760363184767,6.4426,4134.5,4134.4,0.285]
[1760363184972,3.66989,4133.8,4133.7,0.00255236]
[1760363185160,6.36700262,4134.5,4133.8,0.2359354]
[1760363185161,0.43508,4134.0,4133.8,0.2359354]
[1760363185361,3.2078,4134.5,4133.7,0.00255236]
[1760363185567,3.66989,4133.8,4133.7,0.00255236]
[1760363185772,4.32276,4133.0,4131.1,3.2078]
[1760363186068,4.32276,4133.0,4130.5,11.43]
[1760363186069,3.2078,4133.0,4131.8,3.2078]
[1760363186270,0.4352,4132.8,4132.4,0.2359354]
[1760363186476,3.2078,4133.7,4132.9,0.2359354]
[1760363186772,3.2078,4133.7,4133.5,0.43512]
[1760363186971,3.2078,4133.7,4133.6,0.5199354]
[1760363187271,3.2078,4134.8,4133.7,1.08775]
[1760363187574,0.00299782,4135.1,4134.9,0.43497]
[1760363187866,0.00299782,4135.1,4134.0,1.08766]
[1760363187867,3.16067081,4135.0,4134.0,3.4321]
[1760363188059,3.2078,4134.8,4134.1,0.284]
[1760363188264,0.43498,4134.9,4134.2,0.43505]
[1760363188464,0.00299782,4135.1,4134.1,0.284]
[1760363188465,0.43505,4134.2,4134.1,0.284]
[1760363188666,0.43504,4134.3,4134.1,0.284]
[1760363188875,0.43502,4134.5,4134.2,0.2359354]
[1760363189071,5.2588,4135.4,4134.2,3.4321]
[1760363189072,1.74,4135.4,4134.2,3.4321]
[1760363189264,0.43493,4135.3,4135.0,0.2359354]
[1760363189468,1.74,4135.4,4135.0,0.71896]
[1760363189664,0.4427064,4135.4,4135.0,0.284]
[1760363189869,3.2078,4137.5,4136.1,1.08713]
[1760363190067,3.2348,4137.7,4136.6,0.4348]
[1760363190370,0.284,4138.5,4137.3,3.86682]
[1760363190371,3.17641307,4137.4,4137.3,3.86682]
[1760363190570,3.2078,4138.5,4137.3,0.284]
[1760363190776,0.00294077,4137.4,4137.3,0.00206206]
[1760363190976,3.21074077,4137.4,4137.3,0.00206206]
[1760363191172,3.21074077,4137.4,4137.3,0.28606206]
[1760363191173,0.00294077,4137.4,4137.3,0.28606206]
[1760363191667,0.00294077,4137.4,4137.3,0.72078206]
[1760363192071,0.00294077,4137.4,4137.3,4.15288206]
[1760363192473,0.022,4137.8,4137.7,3.86678]
[1760363192675,0.022,4137.8,4137.7,7.3105154]
[1760363192871,0.022,4137.8,4137.7,0.2359354]
[1760363193071,0.022,4137.8,4137.3,0.00206206]
[1760363193072,0.43469,4137.6,4137.3,0.00206206]
[1760363193272,0.43469,4137.6,4137.4,0.5199354]
[1760363193569,0.00228018,4137.6,4137.4,0.5199354]
[1760363193770,0.00228018,4137.6,4137.5,0.2359354]
[1760363193970,0.00228018,4137.6,4137.5,7.3105354]
[1760363194475,0.00228018,4137.6,4137.5,3.4437354]
[1760363194776,0.00228018,4137.6,4137.5,7.3105354]
[1760363195177,3.2078,4139.0,4138.8,0.43456]
[1760363195378,1.08598,4140.5,4137.9,1.08665]
[1760363195379,3.2078,4140.3,4139.2,4.7395]
[1760363195573,3.2348,4141.1,4139.2,5.2594354]
[1760363195574,3.2078,4140.5,4139.2,5.2594354]
[1760363195874,0.65451,4139.3,4139.2,0.284]
[1760363196076,0.65451,4139.3,4137.3,0.00206206]
[1760363196077,0.43453,4139.2,4137.8,0.43466]
[1760363196377,0.43453,4139.2,4137.6,3.4321]
[1760363196378,0.43471,4137.5,4137.3,0.00206206]
[1760363196582,1.08681,4137.3,4136.0,3.2078]
[1760363196880,0.43489,4135.7,4135.5,3.2078]
[1760363197078,0.43483,4136.3,4135.7,3.4321]
[1760363197373,0.43483,4136.3,4135.6,0.284]
[1760363197374,3.2348,4135.7,4135.6,0.284]
[1760363197782,6.8539441,4135.7,4135.6,0.28632851]
[1760363198076,0.00240456,4135.7,4135.6,0.28632851]
[1760363198872,0.00240456,4135.7,4135.6,0.72122851]
[1760363199184,0.00240456,4135.7,4135.6,0.28632851]
[1760363199373,0.00240456,4135.7,4135.6,7.36112851]
[1760363199570,0.00240456,4135.7,4135.6,0.28632851]
[1760363199768,6.33338021,4135.7,4135.6,0.00232851]
[1760363199966,3.09858021,4135.7,4135.6,0.00232851]
[1760363201079,0.00240456,4135.7,4135.6,0.00232851]
[1760363201273,6.37406475,4135.7,4135.6,0.00232851]
[1760363201576,6.37406475,4135.7,4134.2,3.64285]
[1760363201776,3.2078,4135.0,4134.7,3.4321]
[1760363201982,3.2078,4135.0,4134.8,0.284]
[1760363202271,6.432299,4134.9,4134.4,0.284]
[1760363202476,0.43499,4134.8,4134.5,0.284]
[1760363202773,6.432299,4134.7,4134.6,0.284]
[1760363202981,3.66981,4134.6,4134.5,0.00216594]
[1760363203176,3.632499,4134.7,4134.5,0.28616594]
[1760363203373,6.39456813,4134.6,4134.5,0.28616594]
[1760363203778,3.2348,4134.6,4134.5,0.28616594]
[1760363203984,3.15976813,4134.6,4134.5,0.28616594]
[1760363204274,3.2078,4135.0,4134.9,0.43497]
[1760363204479,3.2078,4135.5,4134.9,0.2359354]
[1760363204673,0.00240456,4135.7,4135.6,3.6680354]
[1760363204976,3.2078,4136.5,4135.6,0.284]
[1760363205169,0.43486,4136.0,4135.2,3.2078]
[1760363205374,0.43484,4136.2,4135.6,0.2359354]
[1760363205572,3.07886326,4135.9,4135.6,0.43489]
[1760363205876,0.00207811,4135.9,4135.6,0.43489]
[1760363206076,0.00207811,4135.9,4135.7,3.2078]
[1760363206276,0.00207811,4135.9,4135.8,0.43488]
[1760363206478,0.00207811,4135.9,4135.7,0.43489]
[1760363206673,0.4349,4135.6,4135.0,0.43496]
[1760363206873,6.33029092,4135.9,4134.7,3.2078]
[1760363206874,0.43491,4135.5,4135.1,0.284]
[1760363207075,3.12041281,4135.5,4135.2,3.2671]
[1760363207373,3.20987811,4135.9,4133.9,0.43508]
[1760363207374,0.43501,4134.7,4133.9,0.43508]
[1760363207674,3.3469,4135.4,4133.6,3.2078]
[1760363207675,3.2078,4134.8,4134.6,0.284]
[1760363207881,6.98969,4134.8,4134.6,0.284]
[1760363208082,6.44509422,4134.7,4134.6,0.284]
[1760363208281,0.43501,4134.6,4134.0,0.43507]
[1760363208481,0.43501,4134.6,4134.5,0.28616594]
[1760363208678,3.16011138,4134.6,4134.5,3.78920134]
[1760363208883,0.43491,4135.6,4135.1,0.43495]
[1760363209180,9.37036755,4135.3,4135.2,0.284]
[1760363209487,3.64273,4135.3,4135.2,0.284]
[1760363209784,0.43497,4135.0,4134.5,0.00216594]
[1760363209981,1.08738,4135.2,4134.6,0.284]
[1760363210288,0.43514,4133.3,4132.8,3.23199667]
[1760363210484,2.7767,4132.9,4132.8,0.02419667]
[1760363210780,3.2078,4133.2,4132.9,0.2359354]
[1760363210781,0.43517,4133.1,4132.9,0.2359354]
[1760363211172,0.00249806,4133.1,4132.9,0.00184495]
[1760363211377,6.36769382,4133.0,4132.9,0.00184495]
[1760363211683,0.43517,4133.0,4132.9,0.28584495]
[1760363211882,3.59099382,4133.0,4132.9,0.28584495]
[1760363212081,6.36769382,4133.0,4132.9,0.28584495]
[1760363212284,0.00249806,4133.1,4132.9,0.52178035]
[1760363212581,3.12994621,4133.0,4132.9,0.52178035]
[1760363212784,5.90664621,4133.0,4132.9,0.28584495]
[1760363212985,3.12994621,4133.0,4132.9,0.28584495]
[1760363213176,5.90664621,4133.0,4132.9,0.28584495]
[1760363213481,5.90664621,4133.0,4132.9,0.138091]
[1760363213781,5.90664621,4133.0,4131.8,0.284]
[1760363213782,0.43527,4132.2,4131.8,0.284]
[1760363213979,0.43525,4132.3,4131.9,3.2671]
[1760363214182,3.21029806,4133.1,4132.6,0.43521]
[1760363214482,0.00249806,4133.1,4133.0,6.7108354]
[1760363214783,3.2078,4134.5,4133.6,3.2671]
[1760363214978,5.8222,4134.5,4133.7,0.284]
[1760363215186,5.71850835,4134.2,4134.0,0.2359354]
[1760363215479,3.2078,4134.5,4134.0,0.2359354]
[1760363215674,3.10410835,4134.1,4134.0,0.2359354]
[1760363216086,3.10410835,4134.3,4133.8,0.284]
[1760363216276,3.21018467,4134.5,4133.8,0.284]
[1760363216582,3.11591926,4134.3,4134.1,0.2359354]
[1760363216780,3.11591926,4134.4,4134.1,0.2359354]
[1760363216973,0.00238467,4134.5,4134.1,3.2078]
[1760363217178,0.00238467,4134.5,4134.4,3.5030354]
[1760363217383,0.00238467,4134.5,4134.4,3.7860354]
[1760363217580,0.00238467,4134.5,4134.4,0.2359354]
[1760363217877,0.00238467,4134.5,4134.4,0.283]
[1760363217878,3.11601079,4134.5,4134.4,0.283]
[1760363218078,3.11601079,4134.5,4134.4,0.5189354]
[1760363218284,3.11601079,4134.5,4134.4,0.283]
[1760363218489,3.11601079,4134.5,4134.4,0.5189354]
[1760363218975,3.11601079,4134.5,4133.6,3.2078]
[1760363219175,5.8222,4134.3,4134.1,0.2359354]
[1760363219377,0.43506,4134.1,4133.1,3.2078]
[1760363219577,3.2078,4134.3,4133.7,0.2359354]
[1760363219578,0.4351,4133.8,4133.7,0.2359354]
[1760363219778,0.43514,4133.4,4133.2,0.283]
[1760363219978,5.8222,4133.8,4132.6,3.21045668]
[1760363219979,0.43515,4133.2,4132.6,0.00265668]
[1760363220179,8.97871788,4133.3,4132.7,0.283]
[1760363220380,6.2574,4132.8,4132.7,0.283]
[1760363220577,0.43535,4131.4,4131.0,0.283]
[1760363220786,2.6144,4132.1,4131.0,0.283]
[1760363220787,3.2078,4131.7,4131.0,0.283]
[1760363220989,2.6144,4132.8,4131.5,0.43533]
[1760363221177,1.14340768,4133.7,4132.4,3.2078]
[1760363221178,0.43517,4133.1,4132.4,3.2078]
[1760363221490,3.2078,4133.9,4132.9,3.2078]
[1760363221784,3.2078,4133.9,4132.5,3.5501]
[1760363221785,3.18307281,4133.3,4132.5,3.5501]
[1760363221980,3.18307281,4133.3,4132.9,3.2078]
[1760363222176,3.70215,4133.8,4132.4,3.21083047]
[1760363222380,3.2078,4133.8,4132.9,3.2078]
[1760363222579,0.43512,4133.6,4133.0,0.43517]
[1760363222778,0.00200241,4133.9,4132.5,0.283]
[1760363222779,0.7624,4133.7,4133.5,3.2078]
[1760363222980,0.22050849,4133.7,4133.6,3.2671]
[1760363223175,0.22050849,4133.7,4133.5,3.2078]
[1760363223380,6.36922736,4133.7,4133.6,0.283]
[1760363223583,3.31972736,4133.7,4133.6,0.283]
[1760363223782,0.22050849,4133.7,4133.6,3.5501]
[1760363223983,0.22050849,4133.7,4133.6,6.7579]
[1760363224184,6.58888256,4133.7,4133.6,0.283]
[1760363224384,2.3314,4133.6,4132.1,3.2078]
[1760363224580,0.4352,4132.8,4132.5,0.283]
[1760363224779,3.2078,4133.0,4132.5,0.283]
[1760363224780,0.43521,4132.7,4132.5,0.283]
[1760363224981,3.59578407,4132.7,4132.5,0.283]
[1760363225284,0.43536,4131.3,4131.1,3.2078]
[1760363225587,1.08822,4132.0,4129.8,1.2652809]
[1760363225588,3.17574767,4131.2,4130.3,0.43545]
[1760363225775,3.2078,4131.0,4130.4,0.283]
[1760363225981,0.43541,4130.8,4130.5,0.283]
[1760363226180,0.43542,4130.7,4130.5,0.28490793]
[1760363226385,2.3284,4130.6,4130.5,0.28490793]
[1760363226589,0.43552,4129.7,4129.1,3.2078]
[1760363226886,3.2078,4130.2,4129.7,0.2359354]
[1760363227082,0.43548,4130.1,4129.8,0.283]
[1760363227279,2.3284,4129.9,4129.8,0.283]
[1760363227479,2.7639,4129.9,4129.8,0.02601735]
[1760363227679,5.89204395,4129.9,4129.8,0.02601735]
[1760363227885,3.12814395,4129.9,4129.4,0.283]
[1760363228082,5.43054395,4129.9,4129.4,0.5189354]
[1760363228285,3.1185216,4130.2,4129.6,3.2078]
[1760363228481,0.43545,4130.5,4129.6,3.64333]
[1760363228788,2.3024,4129.5,4129.4,0.283]
[1760363228988,2.3024,4129.5,4128.1,3.2078]
[1760363229287,3.2078,4129.0,4128.2,0.71868]
[1760363229493,3.2078,4129.2,4128.8,0.2359354]
[1760363229688,3.2078,4129.2,4128.9,0.283]
[1760363229887,3.13658719,4129.2,4128.9,0.283]
[1760363230089,3.2078,4129.0,4128.7,0.283]
[1760363230487,3.20991164,4128.9,4128.7,0.283]
[1760363230891,3.20991164,4128.9,4128.8,0.6715554]
[1760363231093,3.2078,4129.5,4128.8,0.6715554]
[1760363231094,3.2078,4129.5,4128.8,0.2359354]
[1760363231285,3.2078,4129.5,4128.7,0.283]
[1760363231286,3.2078,4129.5,4129.3,0.2359354]
[1760363231486,3.2078,4129.5,4129.4,3.7860354]
[1760363231685,1.7364,4130.3,4129.4,3.7267354]
[1760363231887,1.7364,4129.8,4129.5,0.2359354]
[1760363232088,0.43561,4128.9,4128.7,3.2078]
[1760363232285,0.43567,4128.3,4127.2,3.2078]
[1760363232485,1.0891,4128.7,4127.5,0.283]
[1760363232486,1.7364,4128.2,4127.5,0.283]
[1760363232692,1.7338,4128.2,4127.5,0.283]
[1760363232899,1.7338,4127.6,4127.5,0.283]
[1760363233390,1.7338,4127.6,4127.5,0.2849178]
[1760363233391,4.88318982,4127.6,4127.5,0.2849178]
[1760363234694,1.4489,4127.5,4127.4,0.283]
[1760363234897,1.4489,4127.5,4127.3,0.283]
[1760363234898,1.4489,4127.4,4127.3,0.283]
[1760363235100,4.6567,4127.4,4126.4,0.43587]
[1760363235401,1.1723,4127.1,4126.5,0.43586]
[1760363235696,1.1723,4126.7,4126.6,0.283]
[1760363235996,1.1723,4126.7,4125.0,1.09004]
[1760363235997,0.4359,4126.2,4126.0,0.283]
[1760363236196,1.1697,4126.1,4126.0,0.283]
[1760363236397,3.12676396,4126.1,4126.0,0.283]
[1760363236601,0.43579,4127.2,4126.0,3.7163354]
[1760363236797,3.12676396,4126.6,4126.0,0.28490961]
[1760363236993,3.12676396,4127.0,4126.6,3.1974]
[1760363237192,0.00247789,4127.6,4127.4,0.43577]
[1760363237490,0.00247789,4127.6,4127.5,3.7163354]
[1760363237795,0.00247789,4127.6,4127.5,0.5189354]
[1760363237996,3.14753522,4127.6,4127.5,0.283]
[1760363238306,0.43584,4126.8,4126.2,3.64369]
[1760363238501,0.43584,4126.8,4126.2,3.2078]
[1760363238502,1.60558,4126.3,4126.2,3.2078]
[1760363238694,4.29748,4126.5,4125.7,0.283]
[1760363238901,1.1677,4125.8,4125.7,0.283]
[1760363239096,0.43593,4125.9,4125.7,0.283]
[1760363239399,4.72446478,4125.9,4125.7,0.283]
[1760363239595,4.72446478,4125.9,4124.6,3.2078]
[1760363239596,0.43602,4125.0,4124.6,3.2078]
[1760363239794,0.43596,4125.6,4125.1,0.00273961]
[1760363240002,1.60366,4125.6,4125.5,0.2359354]
[1760363240209,1.1677,4125.2,4125.1,0.00273961]
[1760363240507,3.12083478,4125.4,4124.6,3.2078]
[1760363240803,3.14473161,4125.2,4125.0,0.43601]
[1760363241097,3.14473161,4125.4,4125.3,3.1974]
[1760363241296,3.14473161,4125.5,4125.4,3.63338]
[1760363241504,3.1013117,4126.0,4125.4,3.4333354]
[1760363241694,0.43591,4126.0,4125.9,0.2359354]
[1760363241900,3.2078,4126.1,4125.9,0.71892]
[1760363242200,3.2078,4126.7,4126.6,0.43585]
[1760363242500,0.00247789,4127.6,4126.6,0.43585]
[1760363242501,3.19325023,4127.5,4126.6,6.9241354]
[1760363242704,3.19325023,4127.5,4127.4,3.1974]
[1760363242910,0.00247789,4127.6,4127.5,3.63315]
[1760363243203,3.2078,4128.5,4127.5,0.51645751]
[1760363243504,3.2078,4129.0,4128.4,0.23345751]
[1760363243703,3.2078,4129.0,4128.5,0.283]
[1760363243704,0.43563,4128.7,4128.5,0.283]
[1760363243902,3.11298142,4129.0,4128.6,0.283]
[1760363244203,0.00299961,4128.7,4128.6,0.283]
[1760363244600,3.08553191,4128.7,4128.6,0.283]
[1760363244803,0.00299961,4128.7,4128.6,3.4804]
[1760363245001,3.2078,4130.0,4128.6,3.4804]
[1760363245199,3.2078,4130.0,4128.6,6.6882]
[1760363245402,3.17733277,4129.6,4128.7,0.283]
[1760363245603,0.43562,4128.8,4128.5,0.00216892]
[1760363245800,3.2078,4129.5,4128.5,0.00216892]
[1760363245801,1.1677,4129.6,4128.9,0.4356]
[1760363246005,1.1677,4129.6,4128.6,3.4908]
[1760363246006,0.00234219,4129.6,4129.4,0.43555]
[1760363246199,0.00234219,4129.6,4129.5,0.51645751]
[1760363246406,0.00234219,4129.6,4129.5,3.71385751]
[1760363246898,0.00234219,4129.6,4129.5,0.51645751]
[1760363247104,3.07896274,4129.6,4128.9,3.2078]
[1760363247310,1.1677,4129.0,4128.9,3.2078]
[1760363247611,4.34233934,4129.0,4128.9,3.4908]
[1760363248198,3.17463934,4129.0,4128.9,3.72425751]
[1760363248397,3.17463934,4129.0,4128.9,3.4908]
[1760363248603,0.00234219,4129.6,4129.5,0.43554]
[1760363248813,0.00234219,4129.6,4129.5,0.51645751]
[1760363249012,0.00234219,4129.6,4129.0,3.2078]
[1760363249013,0.43557,4129.3,4129.0,3.2078]
[1760363249200,0.43563,4128.7,4128.5,0.00216892]
[1760363249401,1.1677,4128.6,4127.4,3.2078]
[1760363249599,0.43579,4127.2,4126.6,3.2078]
[1760363249807,0.43584,4126.8,4126.7,0.283]
[1760363250110,4.71232403,4126.8,4126.7,0.283]
[1760363250504,5.36608403,4126.8,4126.3,0.283]
[1760363250697,4.09,4126.4,4126.3,0.283]
[1760363250899,3.2078,4126.4,4126.3,0.283]
[1760363251203,6.37308026,4126.4,4126.3,0.283]
[1760363251601,6.37308026,4126.4,4126.3,0.28471544]
[1760363251602,6.37481676,4126.4,4126.3,0.28471544]
[1760363251798,6.37481676,4126.4,4126.3,3.48211544]
[1760363251799,0.0017365,4126.4,4126.3,3.48211544]
[1760363252006,3.2078,4127.5,4126.4,1.08968]
[1760363252211,3.2078,4127.5,4127.4,0.23345751]
[1760363252505,3.21785445,4128.1,4127.8,0.43572]
[1760363252710,6.42565445,4128.5,4127.9,0.283]
[1760363252711,3.2078,4128.5,4127.9,0.283]
[1760363252908,3.2078,4128.5,4128.2,0.23345751]
[1760363253105,3.21785445,4128.0,4127.9,0.283]
[1760363253309,3.21785445,4128.4,4128.0,0.23345751]
[1760363253601,3.2106103,4128.5,4128.3,0.23345751]
[1760363253602,0.0028103,4128.5,4128.3,0.23345751]
[1760363253804,0.0028103,4128.5,4128.4,0.51645751]
[1760363254002,3.09469851,4128.4,4128.2,3.63307]
[1760363254205,0.0028103,4128.5,4128.4,3.63306]
[1760363254408,0.0028103,4128.5,4128.4,3.86651751]
[1760363254602,3.2078,4129.1,4128.4,3.43085751]
[1760363254812,3.2078,4129.1,4129.0,0.23345751]
[1760363255004,0.8822,4129.0,4128.3,3.2078]
[1760363255313,6.32821971,4129.1,4128.4,3.2078]
[1760363255507,3.2078,4129.1,4129.0,0.23345751]
[1760363255704,3.2095437,4129.1,4129.0,0.283]
[1760363255900,0.0017437,4129.1,4129.0,3.71385751]
[1760363256216,0.0017437,4129.1,4129.0,0.51645751]
[1760363256414,0.0017437,4129.1,4129.0,3.71385751]
[1760363256712,3.2078,4129.7,4129.6,3.1974]
[1760363256909,3.2078,4129.7,4129.6,3.4794]
[1760363257214,3.2078,4130.8,4130.0,0.43549]
[1760363257404,3.2078,4130.8,4130.3,0.23345751]
[1760363257601,1.13823453,4130.4,4130.3,0.0022824]
[1760363257912,1.13823453,4130.4,4130.3,3.1996824]
[1760363258305,1.13823453,4130.4,4130.3,0.0022824]
[1760363258509,1.13823453,4130.4,4130.3,0.2842824]
[1760363258818,1.57368453,4130.4,4130.3,0.2842824]
[1760363259118,4.65370876,4130.4,4130.3,0.2842824]
[1760363259310,1.08872,4130.1,4129.0,3.2078]
[1760363259515,0.43562,4128.9,4128.4,3.2078]
[1760363259816,0.43567,4128.4,4127.9,3.2078]
[1760363260001,6.38855492,4128.8,4127.9,3.2078]
[1760363260206,0.4357,4128.0,4127.9,3.2078]
[1760363260511,0.4357,4128.0,4127.9,3.49293005]
[1760363260714,7.71707023,4128.0,4127.9,0.28513005]
[1760363261012,7.71707023,4128.0,4127.9,0.282]
[1760363261203,7.71707023,4128.0,4126.8,0.282]
[1760363261204,0.5971,4127.5,4126.8,0.282]
[1760363261408,3.2078,4127.4,4126.8,0.282]
[1760363261608,6.32440848,4127.4,4126.8,0.282]
[1760363261809,0.43582,4127.0,4126.9,0.23345751]
[1760363262003,0.43582,4127.0,4126.8,0.282]
[1760363262004,3.2078,4127.9,4126.8,0.282]
[1760363262309,3.51482264,4127.0,4126.8,0.00285238]
[1760363262609,3.51482264,4127.0,4126.9,0.282]
[1760363262610,0.43581,4127.0,4126.9,0.282]
[1760363262814,0.43581,4127.0,4126.8,0.00285238]
[1760363262815,3.67611264,4126.9,4126.8,0.00285238]
[1760363263009,1.08958,4126.8,4126.3,0.282]
[1760363263310,0.43588,4126.3,4126.1,0.282]
[1760363263705,3.14677035,4126.2,4126.1,0.282]
[1760363264029,0.86040768,4128.0,4126.3,3.1974]
[1760363264212,0.86040768,4128.0,4126.1,3.49200513]
[1760363264213,0.4358,4127.1,4126.4,0.282]
[1760363264408,3.64307,4127.4,4127.0,0.23345751]
[1760363264714,3.64309,4127.2,4127.1,0.282]
[1760363264915,3.2073,4127.2,4126.7,0.282]
[1760363265213,1.08962,4126.7,4126.1,0.00220513]
[1760363265411,2.9226,4126.7,4126.3,0.282]
[1760363265614,0.43582,4127.0,4126.6,0.23345751]
[1760363265808,3.14934544,4126.6,4126.3,0.282]
[1760363266012,2.98300709,4126.6,4126.5,4.01781751]
[1760363266210,3.2078,4128.0,4126.7,3.3485]
[1760363266421,0.43568,4128.3,4127.8,0.23345751]
[1760363266711,3.2078,4128.5,4127.8,0.51545751]
[1760363266914,3.2078,4128.5,4127.8,6.9538]
[1760363267113,3.2078,4129.0,4128.8,0.43561]
[1760363267312,3.2078,4129.0,4128.9,0.282]
[1760363267516,3.14886557,4129.0,4128.9,0.282]
[1760363267715,3.2078,4129.5,4128.9,0.51545751]
[1760363267915,3.2078,4129.5,4128.9,0.282]
[1760363268118,0.0027856,4129.5,4129.4,6.90525751]
[1760363268419,0.0027856,4129.5,4129.4,0.23594471]
[1760363268610,0.0027856,4129.5,4129.4,0.0024872]
[1760363268808,0.0027856,4129.5,4129.4,0.2844872]
[1760363269012,0.0027856,4129.5,4129.4,0.51794471]
[1760363269209,0.0027856,4129.5,4129.4,3.98194471]
[1760363269413,1.1364,4130.4,4129.4,3.72574471]
[1760363269719,1.1364,4130.4,4130.3,3.69745751]
[1760363269917,1.1364,4130.4,4130.3,3.97945751]
[1760363270224,1.1364,4130.4,4130.3,3.746]
[1760363270520,0.00236829,4130.4,4130.3,3.746]
[1760363270722,3.2078,4132.0,4131.5,0.43532]
[1760363270912,3.2078,4132.0,4131.7,3.464]
[1760363271111,3.2078,4132.0,4131.6,0.282]
[1760363271112,0.43524,4132.4,4131.9,0.23345751]
[1760363271318,1.94827768,4133.3,4131.8,0.282]
[1760363271319,3.2078,4133.5,4132.0,3.4898]
[1760363271624,3.2078,4133.5,4133.3,0.23345751]
[1760363271625,0.00312251,4133.5,4133.3,0.23345751]
[1760363271927,0.43824251,4133.5,4133.4,0.282]
[1760363272117,2.9243,4133.4,4133.3,0.00216328]
[1760363272422,3.15550089,4133.4,4133.3,0.51762079]
[1760363272615,3.64605251,4133.5,4133.3,0.28416328]
[1760363272820,6.57035251,4133.5,4133.3,0.28416328]
[1760363273014,3.10923593,4133.4,4133.3,0.00216328]
[1760363273215,0.00312251,4133.5,4133.3,0.28416328]
[1760363273422,0.00312251,4133.5,4133.4,0.23345751]
[1760363273710,0.00312251,4133.5,4133.4,3.69745751]
[1760363274318,0.22050849,4133.7,4133.5,0.43512]
[1760363274510,1.08719,4135.9,4134.5,3.464]
[1760363274511,3.2078,4135.5,4134.5,3.464]
[1760363274718,1.08698,4136.7,4133.8,1.3168]
[1760363274719,3.2078,4136.0,4135.1,0.43495]
[1760363274923,3.13165094,4135.8,4135.3,0.43493]
[1760363275121,1.08692,4137.0,4135.2,0.282]
[1760363275122,3.13165094,4136.4,4135.7,3.464]
[1760363275312,0.00273505,4136.4,4136.0,0.23345751]
[1760363275514,0.00273505,4136.4,4136.2,3.464]
[1760363275724,0.00273505,4136.4,4136.3,3.97945751]
[1760363276125,0.6351,4136.8,4136.7,3.464]
[1760363276317,0.53277872,4136.8,4136.7,3.69745751]
[1760363276930,0.53277872,4136.8,4136.7,0.23345751]
[1760363277119,0.53578145,4136.8,4136.7,3.69745751]
[1760363277316,0.00300273,4136.8,4136.7,3.97845751]